[Event "Polish University-ch Teams 2024"]
[Site "Lublin"]
[Date "2024.02.25"]
[Round "7.24"]
[White "Rykala, Monika"]
[Black "Lascar, Radoslawa"]
[Result "1-0"]
[ECO "A48"]
[WhiteElo "1893"]
[BlackElo "1804"]
[Annotator "NA"]
[PlyCount "127"]
[EventDate "2024.02.22"]
[EventType "team-tourn"]
[EventCountry "POL"]
[SourceTitle "playchess.com"]
[Source "ChessBase"]
[SourceQuality "1"]
[TimeControl "900+5"]

1. d4 {[%emt 0:00:01]} Nf6 {[%emt 0:00:02]} 2. Nf3 {[%emt 0:00:01]} g6 {[%emt 0:00:01]} 3. Bf4 {[%emt 0:00:03]} Bg7 {[%emt 0:00:22]} 4. e3 {[%emt 0:00:01]} O-O {[%emt 0:00:02]} 5. h3 {[%emt 0:00:04]} c5 {[%emt 0:01:00]} 6. c3 {[%emt 0:00:01]} d6 {[%emt 0:00:11]} 7. Bd3 {[%emt 0:00:43]} Re8 {[%emt 0:00:30]} 8. Bh2 {[%emt 0:00:03]} Nbd7 {[%emt 0:00:26]} 9. O-O {[%emt 0:00:06]} a6 {[%emt 0:01:06]} 10. a4 {[%emt 0:00:20]} e5 {[%emt 0:01:29]} 11. dxe5 {[%emt 0:00:02]} dxe5 {[%emt 0:00:17]} 12. Bc4 {[%emt 0:00:10]} Qe7 {[%emt 0:00:51]} 13. Qb3 {[%emt 0:00:40]} Rb8 {[%emt 0:01:11]} 14. Rd1 {[%emt 0:00:55]} b6 {[%emt 0:00:26]} 15. Nbd2 {[%emt 0:02:01]} Bb7 {[%emt 0:00:01]} 16. Ng5 {[%emt 0:00:41]} Rf8 {[%emt 0:00:03]} 17. Re1 {[%emt 0:03:00]} h6 {[%emt 0:01:06]} 18. Ngf3 {[%emt 0:00:01]} Rbc8 {[%emt 0:00:00]} 19. Nf1 {[%emt 0:00:46]} Bxf3 {[%emt 0:02:06]} 20. gxf3 {[%emt 0:00:02]} Ra8 {[%emt 0:00:29]} 21. Rad1 {[%emt 0:00:02]} Nh5 {[%emt 0:01:37]} 22. Qc2 {[%emt 0:01:38]} Kh7 {[%emt 0:00:15]} 23. Ng3 {[%emt 0:01:44]} Ndf6 {[%emt 0:00:36]} 24. Qe2 {[%emt 0:00:29]} a5 {[%emt 0:01:00]} 25. Rd2 {[%emt 0:00:02]} Rfd8 {[%emt 0:00:08]} 26. Red1 {[%emt 0:00:01]} Kg8 {[%emt 0:00:11]} 27. Rxd8+ {[%emt 0:00:19]} Rxd8 {[%emt 0:00:01]} 28. Qc2 {[%emt 0:00:01]} Kf8 {[%emt 0:00:26]} 29. Qb3 {[%emt 0:00:18]} Rxd1+ {[%emt 0:01:18]} 30. Qxd1 {[%emt 0:00:01]} Qd7 {[%emt 0:00:11]} 31. Qb3 {[%emt 0:00:02]} Qb7 {[%emt 0:00:05]} 32. Qd1 {[%emt 0:00:08]} Qd7 {[%emt 0:00:01]} 33. Qxd7 {[%emt 0:01:11]} Nxd7 {[%emt 0:00:22]} 34. Nxh5 {[%emt 0:00:01]} gxh5 {[%emt 0:00:00]} 35. f4 {[%emt 0:00:08]} f5 {[%emt 0:00:03]} 36. Be6 {[%emt 0:00:03]} Ke7 {[%emt 0:00:03]} 37. Bxf5 {[%emt 0:00:02]} exf4 {[%emt 0:00:05]} 38. Bxf4 {[%emt 0:00:02]} Nf6 {[%emt 0:00:02]} 39. e4 {[%emt 0:00:28]} Kd8 {[%emt 0:00:08]} 40. Be5 {[%emt 0:00:10]} Ke7 {[%emt 0:00:06]} 41. f3 {[%emt 0:00:06]} Bf8 {[%emt 0:00:05]} 42. Bc7 {[%emt 0:00:09]} Nd7 {[%emt 0:00:04]} 43. Bxd7 {[%emt 0:00:28]} Kxd7 {[%emt 0:00:00]} 44. Bxb6 {[%emt 0:00:01]} Kc6 {[%emt 0:00:19]} 45. Bxa5 {[%emt 0:00:01]} Be7 {[%emt 0:00:00]} 46. b4 {[%emt 0:00:05]} Bf6 {[%emt 0:00:00]} 47. b5+ {[%emt 0:00:08]} Kb7 {[%emt 0:00:00]} 48. Kf2 {[%emt 0:00:01]} Bg5 {[%emt 0:00:11]} 49. Ke2 {[%emt 0:00:01]} c4 {[%emt 0:00:05]} 50. Kf2 {[%emt 0:00:09]} Bf4 {[%emt 0:00:01]} 51. Bd8 {[%emt 0:00:05]} Be5 {[%emt 0:00:07]} 52. Ba5 {[%emt 0:00:01]} Bf4 {[%emt 0:00:16]} 53. Kg2 {[%emt 0:00:04]} Be5 {[%emt 0:00:00]} 54. Kf2 {[%emt 0:00:07]} Bf4 {[%emt 0:00:00]} 55. Ke2 {[%emt 0:00:06]} Ka7 {[%emt 0:00:08]} 56. Kd1 {[%emt 0:00:02]} Kb7 {[%emt 0:00:01]} 57. Kc2 {[%emt 0:00:01]} Be5 {[%emt 0:00:07]} 58. Bb4 {[%emt 0:00:02]} Kb6 {[%emt 0:00:05]} 59. Kb2 {[%emt 0:00:03]} Bf6 {[%emt 0:00:06]} 60. Bd6 {[%emt 0:00:17]} Ka5 {[%emt 0:00:05]} 61. f4 {[%emt 0:00:11]} Bd8 {[%emt 0:00:06]} 62. Ka3 {[%emt 0:00:03]} h4 {[%emt 0:00:03]} 63. f5 {[%emt 0:00:04]} Bg5 {[%emt 0:00:05]} 64. Bc7# {[%emt 0:00:01]} 1-0

[Event "Polish University-ch Teams 2024"]
[Site "Lublin"]
[Date "2024.02.25"]
[Round "8.1"]
[White "Kosakowski, Jakub"]
[Black "Janik, Igor"]
[Result "1-0"]
[ECO "C01"]
[WhiteElo "2482"]
[BlackElo "2499"]
[Annotator "ChessBase"]
[PlyCount "75"]
[EventDate "2024.02.22"]
[EventType "team-tourn"]
[EventCountry "POL"]
[SourceTitle "playchess.com"]
[Source "ChessBase"]
[SourceQuality "1"]
[TimeControl "900+5"]

1. e4 {[%emt 0:00:03]} Nf6 {[%emt 0:00:01]} 2. Nc3 {[%emt 0:00:14]} Ng8 {[%emt 0:00:12]} 3. Nb1 {[%emt 0:00:04]} a6 {[%emt 0:00:02]} 4. d4 {[%emt 0:00:05]} e6 {[%emt 0:00:01]} 5. Nf3 {[%emt 0:01:23]} b5 {[%emt 0:00:10]} 6. a4 {[%emt 0:00:10]} b4 {[%emt 0:00:00]} 7. Bd3 {[%emt 0:00:04]} Bb7 {[%emt 0:00:05]} 8. O-O {[%emt 0:00:06]} Nf6 {[%emt 0:00:02]} 9. e5 {[%emt 0:00:16]} Nd5 {[%emt 0:00:02]} 10. c4 {[%emt 0:00:02]} bxc3 {[%emt 0:00:04]} 11. bxc3 {[%emt 0:00:05]} Be7 {[%emt 0:00:02]} 12. Re1 {[%emt 0:01:01]} O-O {[%emt 0:00:08]} 13. Nbd2 {[%emt 0:00:08]} f5 {[%emt 0:00:12]} 14. exf6 {[%emt 0:00:19]} Nxf6 {[%emt 0:00:02]} 15. Rb1 {[%emt 0:00:08]} Qc8 {[%emt 0:00:08]} 16. Nc4 {[%emt 0:01:10]} Nc6 {[%emt 0:00:16]} 17. Bc2 {[%emt 0:00:42]} Rb8 {[%emt 0:01:09]} 18. Qd3 {[%emt 0:00:25]} Nd8 {[%emt 0:00:19]} 19. Bg5 {[%emt 0:00:21]} Bxf3 {[%emt 0:00:49]} 20. Bxf6 {[%emt 0:00:09]} Bxf6 {[%emt 0:00:02]} 21. Qxh7+ {[%emt 0:00:55]} Kf7 {[%emt 0:00:01]} 22. Rxb8 {[%emt 0:00:13]} Qxb8 {[%emt 0:00:01]} 23. gxf3 {[%emt 0:00:02]} Ke7 {[%emt 0:00:26]} 24. Ne3 {[%emt 0:00:38]} Nf7 {[%emt 0:00:07]} 25. Nd5+ {[%emt 0:03:16]} Kd8 {[%emt 0:00:24]} 26. Nxf6 {[%emt 0:00:26]} gxf6 {[%emt 0:00:01]} 27. Qg7 {[%emt 0:00:02]} Ke7 {[%emt 0:00:03]} 28. Bg6 {[%emt 0:00:02]} Qb3 {[%emt 0:00:25]} 29. Re3 {[%emt 0:02:23]} Qxa4 {[%emt 0:00:01]} 30. h4 {[%emt 0:00:10]} Qa1+ {[%emt 0:00:11]} 31. Kg2 {[%emt 0:00:04]} Qa5 {[%emt 0:00:01]} 32. c4 {[%emt 0:00:24]} Qb4 {[%emt 0:01:21]} 33. d5 {[%emt 0:01:34]} Qxc4 {[%emt 0:00:04]} 34. dxe6 {[%emt 0:00:02]} dxe6 {[%emt 0:00:01]} 35. Bf5 {[%emt 0:00:03]} e5 {[%emt 0:00:03]} 36. Rd3 {[%emt 0:00:01]} Qxh4 {[%emt 0:00:30]} 37. Rd7+ {[%emt 0:00:03]} Ke8 {[%emt 0:00:01]} 38. Rd8+ {[%emt 0:00:01]} 1-0

[Event "Polish University-ch Teams 2024"]
[Site "Lublin"]
[Date "2024.02.25"]
[Round "8.3"]
[White "Hasterok, Mateusz"]
[Black "Molenda, Marcin"]
[Result "0-1"]
[ECO "A45"]
[WhiteElo "2150"]
[BlackElo "2377"]
[Annotator "TA"]
[PlyCount "116"]
[EventDate "2024.02.22"]
[EventType "team-tourn"]
[EventCountry "POL"]
[SourceTitle "playchess.com"]
[Source "ChessBase"]
[SourceQuality "1"]
[TimeControl "900+5"]

{[%evp 25,116,14,33,14,72,31,38,35,21,-10,-14,-13,0,0,-4,0,0,-13,10,-20,-16,-22,-35,-155,-124,-166,-172,-188,-177,-323,-329,-300,-270,-276,-278,-247,0,0,0,-143,-145,-149,-124,-122,-105,-222,-143,-155,-138,-154,-157,-151,-67,-83,-89,-80,-89,-113,-63,-40,0,-162,-145,-202,-193,-214,-229,-217,-185,-416,-329,-1134,-851,-12842,-2718,-12848,-12829,-29995,-29991,-29992,-29992,-29996,-29995,-29995,-29994,-29994,-29995,-29995,-29994,-29994,-29995,-29995,-29996]} 1. d4 {[%emt 0:00:01]} Nf6 {[%emt 0:00:02]} 2. Bg5 {[%emt 0:00:02]} e6 {[%emt 0:00:02]} 3. Nd2 {[%emt 0:00:01]} h6 {[%emt 0:01:06]} 4. Bh4 {[%emt 0:00:01]} c5 {[%emt 0:00:18]} 5. e3 {[%emt 0:00:02]} Nc6 {[%emt 0:00:09]} 6. c3 {[%emt 0:00:09] A45: Trompowsky Attack.} d5 {[%emt 0:00:23]} 7. f4 {[%emt 0:00:05]} Be7 {[%emt 0:00:10]} 8. Bd3 {[%emt 0:00:19]} b6 {[%emt 0:13:35]} 9. Ngf3 {[%emt 0:00:02]} a5 {[%emt 0:00:00]} 10. Qe2 {[%emt 0:00:01]} a4 $146 {[%emt 0:00:00]} ({Predecessor:} 10... c4 11. Bc2 b5 12. O-O b4 13. Ne5 Nxe5 14. fxe5 Nd7 15. Bg3 Bg5 16. Nf3 Ba6 17. Nxg5 hxg5 {0-1 Krsnik Cohar,I (2313)-Svane,F (2421) Titled Tuesday intern op 01st Sept blitz 2020 (9)}) 11. a3 {[%emt 0:00:41]} Qc7 {[%emt 0:00:00]} 12. Ne5 {[%emt 0:00:15]} Bb7 {[%emt 0:00:00]} 13. O-O {[%emt 0:00:21]} O-O {[%emt 0:00:00]} 14. g4 {[%emt 0:00:29]} Nxe5 {[%emt 0:00:00]} (14... Ne4 $11 15. Nxc6 Bxc6 16. Bxe7 Qxe7) 15. fxe5 {[%emt 0:00:13]} (15. dxe5 $5 Ne4 16. Bxe7 Qxe7 17. Nxe4 dxe4 18. Bb5 $15) 15... Ne4 $1 {[%emt 0:00:00]} 16. Bxe7 {[%emt 0:00:36]} Qxe7 {[%emt 0:00:00]} 17. Bxe4 {[%emt 0:00:02]} dxe4 {[%emt 0:00:00]} 18. Rf4 {[%emt 0:00:25]} f6 {[%emt 0:00:00]} 19. exf6 {[%emt 0:00:29]} Rxf6 {[%emt 0:00:00]} 20. Rxf6 {[%emt 0:00:17]} Qxf6 {[%emt 0:00:00]} 21. Rf1 {[%emt 0:00:09]} Qg6 {[%emt 0:00:00]} 22. Qg2 {[%emt 0:00:26]} cxd4 {[%emt 0:00:00]} 23. cxd4 {[%emt 0:00:01]} Rc8 {[%emt 0:00:00]} 24. Nb1 {[%emt 0:00:28]} (24. h3 $15) 24... Ba6 $17 {[%emt 0:00:00]} 25. Re1 {[%emt 0:00:10] [#]} Rf8 $1 {[%emt 0:00:00]} 26. Nd2 {[%emt 0:00:17]} Bd3 {[%emt 0:00:00]} 27. Rc1 {[%emt 0:00:21]} (27. h4 $142) 27... Qg5 $19 {[%emt 0:00:00]} 28. Re1 {[%emt 0:00:34]} Qd5 {[%emt 0:00:00]} 29. Rc1 {[%emt 0:05:23]} e5 {[%emt 0:00:00]} 30. g5 {[%emt 0:00:08]} hxg5 $2 {[%emt 0:00:00]} (30... exd4 31. gxh6 g5 (31... dxe3 32. Qxg7#) 32. Qg3 $17) ({Black should try} 30... h5 $19 31. dxe5 Qxe5) 31. Qxg5 $11 {[%emt 0:00:38]} Qf7 {[%emt 0:00:00]} 32. Qg3 {[%emt 0:00:52]} (32. Qxe5 $11 Qf2+ 33. Kh1) 32... exd4 $17 {[%emt 0:00:00]} 33. exd4 {[%emt 0:00:02]} Qf6 {[%emt 0:00:00]} 34. Qe3 {[%emt 0:00:58]} Qh4 {[%emt 0:00:00]} 35. Re1 {[%emt 0:00:58]} (35. h3 $17) 35... Qg4+ {[%emt 0:00:00]} 36. Kh1 {[%emt 0:00:01]} Rf6 {[%emt 0:00:00]} 37. Rg1 {[%emt 0:00:10]} Qh4 {[%emt 0:00:00]} 38. Rg3 {[%emt 0:00:49]} Rh6 {[%emt 0:00:00]} (38... Rc6 $17 39. b3 axb3 40. Nxb3 Bc4) 39. Qg1 {[%emt 0:00:02]} Qf6 {[%emt 0:00:12]} 40. Qe3 {[%emt 0:00:05]} Rh4 {[%emt 0:00:09]} 41. d5 {[%emt 0:00:54] [#]} Qe5 {[%emt 0:00:35]} (41... Qxb2 $2 42. Qg5 Rh7 43. d6 (43. Qd8+ Kf7 $18) 43... Qc1+ 44. Kg2 $18) (41... Rf4 $1 $17 42. Rg1 Qe5) 42. Kg2 $15 {[%emt 0:00:16]} Qxd5 {[%emt 0:00:21]} 43. Rg5 $2 {[%emt 0:00:01]} (43. Rxg7+ $1 $11 {and White has nothing to worry.} Kxg7 44. Qg3+ Kf7 45. Qxh4) 43... Qd6 {[%emt 0:00:18]} 44. Rg3 {[%emt 0:00:02]} (44. Qg3 $17 {was worth a try.} Qh6 45. Kg1) 44... Rf4 $19 {[%emt 0:00:18]} 45. b3 {[%emt 0:00:09]} axb3 {[%emt 0:00:04]} 46. Nxb3 {[%emt 0:00:03]} Rf7 {[%emt 0:00:22]} 47. Nd4 $2 {[%emt 0:00:05]} (47. Nd2) 47... Qf6 {[%emt 0:00:08]} 48. Qg1 $2 {[%emt 0:00:20]} (48. Kh1) 48... Rd7 {[%emt 0:00:29]} 49. Nb3 {[%emt 0:00:06]} Qb2+ {[%emt 0:00:02]} (49... e3 $142 50. Rxe3 Be4+ (50... Qb2+ 51. Qf2 $11) 51. Rxe4 Qg6+ 52. Kf2 Rf7+ (52... Qxe4 {is a self mate.} 53. Qg2 Qc2+ 54. Kg3 Rd3+ 55. Qf3 Qxb3 56. Qxd3 Qxd3+ 57. Kg4 Qxa3 58. Kf4 Qd3 59. h4 b5 60. Kg4 b4 61. Kf4 b3 62. Kg4 b2 63. h5 b1=Q 64. h6 Qg6+ 65. Kf3 Qbe4+ 66. Kf2 Qgg2#) 53. Ke2 Qxg1 54. Re8+ Kh7 55. Rf8 Rxf8 56. Kd3 Qd1+ (56... Qxh2 57. Kc4 Qc2+ 58. Kd4 Rd8+ 59. Ke5 Qxb3 60. Ke4 Rd5 61. a4 g5 62. a5 Qd3#) 57. Nd2 Rd8+ 58. Kc4 Qe2+ (58... Rxd2 59. Kb5 Qg1 60. h4 Qc5+ 61. Ka6 Rd7 62. a4 Qa5#) 59. Kb3 Qd3+ (59... Qxd2 60. a4 Rd4 61. a5 Rb4+ 62. Ka3 Qb2#) 60. Kb2 Qxd2+ 61. Kb1 Qe2 62. h4 Rd1#) 50. Kh3 {[%emt 0:00:02]} Qxb3 {[%emt 0:00:05]} 51. Rg6 {[%emt 0:00:03]} e3 {[%emt 0:00:13]} 52. Rg3 {[%emt 0:00:01]} Bf5+ {[%emt 0:00:01]} 53. Kg2 {[%emt 0:00:02]} Rd2+ {[%emt 0:00:01]} 54. Kf3 {[%emt 0:00:02]} e2+ {[%emt 0:00:14]} ({Not} 54... Qxa3 55. Rxg7+ Kf8 56. Rg8+ Kf7 57. Qg7+ Ke6 58. Qh6+ Kd5 59. Rd8+ Kc4 60. Qf4+ Kc3 61. Qe5+ Kc4 62. Qf4+ Kc3 63. Qe5+ Kc4 64. Qf4+ $11) 55. Kf4 {[%emt 0:00:01]} Qc4+ {[%emt 0:00:12]} 56. Kg5 {[%emt 0:00:03]} Qe6 {[%emt 0:00:05]} 57. Re3 {[%emt 0:00:30]} Qg6+ {[%emt 0:00:01]} 58. Kf4 {[%emt 0:00:01]} Qxg1 {[%emt 0:00:02]} 0-1

[Event "Polish University-ch Teams 2024"]
[Site "Lublin"]
[Date "2024.02.25"]
[Round "8.4"]
[White "Jarzebowski, Kacper"]
[Black "Brozyna, Mateusz"]
[Result "0-1"]
[ECO "C77"]
[WhiteElo "2135"]
[BlackElo "2259"]
[Annotator "TA"]
[PlyCount "154"]
[EventDate "2024.02.22"]
[EventType "team-tourn"]
[EventCountry "POL"]
[SourceTitle "playchess.com"]
[Source "ChessBase"]
[SourceQuality "1"]
[TimeControl "900+5"]

{[%evp 11,154,0,5,9,12,-2,0,-31,0,-6,-4,-10,0,-13,-9,-13,-10,-14,-18,-8,-1,-45,-27,-25,-20,-24,-22,-50,-30,-62,-53,-79,-51,-41,-43,-94,-104,-95,-98,-92,-61,-106,-111,-115,-83,-70,-53,-92,-68,-63,-59,-60,-53,-40,-38,-59,-49,-97,-77,-94,-33,-49,-43,-32,-20,-20,-20,-80,-52,-61,-61,-143,-92,-115,0,0,0,0,0,-88,-118,-85,0,0,0,-17,-17,-179,-177,-373,-390,-451,-423,-389,-389,-417,-400,-687,-599,-702,-693,-685,-595,-725,-692,-957,-914,-800,-966,-1585,-1005,-1191,-1084,-1087,-1013,-3970,-2783,-2716,-2268,-4133,-2421,-4631,-4627,-8997,-5608,-6640,-6177,-6970,-6589,-6095,-7269,-29958,-29966,-29942,-5109,-29980,-29953,-29980,-29981,-29979,-29969,-29986,-29987,-29988,-29989]} 1. e4 {[%emt 0:00:00]} e5 {[%emt 0:00:01]} 2. Nf3 {[%emt 0:00:02]} Nc6 {[%emt 0:00:01]} 3. Bb5 {[%emt 0:00:02]} a6 {[%emt 0:00:02]} 4. Ba4 {[%emt 0:00:01]} Nf6 {[%emt 0:00:01]} 5. Bxc6 {[%emt 0:00:01]} dxc6 {[%emt 0:00:02]} 6. d3 {[%emt 0:00:07]} Bd6 {[%emt 0:00:05]} 7. O-O {[%emt 0:00:03]} O-O {[%emt 0:00:12]} 8. b3 {[%emt 0:00:08]} Re8 {[%emt 0:00:11]} 9. Bb2 {[%emt 0:00:02] The position is equal.} Bg4 {[%emt 0:00:29]} 10. Nbd2 {[%emt 0:00:04]} Nd7 {[%emt 0:00:08]} 11. h3 {[%emt 0:00:02]} Bh5 {[%emt 0:00:02]} 12. Qe2 {[%emt 0:00:29]} Qe7 {[%emt 0:00:21]} 13. Nc4 {[%emt 0:00:13]} f6 {[%emt 0:01:09]} 14. Ne3 {[%emt 0:00:37]} Nc5 {[%emt 0:01:00]} 15. Nf5 {[%emt 0:00:14]} Qd7 {[%emt 0:00:47]} 16. g4 {[%emt 0:00:14]} Bg6 {[%emt 0:00:07]} 17. N3h4 {[%emt 0:00:17]} Ne6 {[%emt 0:00:08]} 18. Qf3 {[%emt 0:00:06]} Bc5 {[%emt 0:00:28]} 19. Rad1 {[%emt 0:00:19]} a5 {[%emt 0:01:19]} 20. c3 {[%emt 0:00:49]} a4 {[%emt 0:00:10]} 21. b4 {[%emt 0:00:01]} a3 {[%emt 0:00:09]} 22. Bc1 {[%emt 0:00:37]} Bf8 {[%emt 0:00:05]} 23. Rfe1 {[%emt 0:00:48]} (23. Nxg6 $15 hxg6 24. Ng3) 23... Bf7 $17 {[%emt 0:01:01]} 24. Ng2 {[%emt 0:01:42][%cal Bh4g2,Bg2e3,Be3c4][%mdl 32]} b6 {[%emt 0:03:22]} 25. h4 {[%emt 0:00:21]} Kh8 {[%emt 0:01:18]} 26. Nge3 {[%emt 0:01:29]} Nf4 {[%emt 0:00:26]} 27. Nc4 {[%emt 0:00:41]} b5 {[%emt 0:00:26]} 28. Nxa3 {[%emt 0:03:30]} Bxa2 {[%emt 0:00:02] Black is more active.} (28... h5 $5 29. g5 fxg5 (29... Bxa2 30. Bxf4 g6 31. Bc1 $11) 30. hxg5 g6 $17 (30... Bxa2 $2 31. Bxf4 g6 32. Bc1 $18)) 29. Bxf4 {[%emt 0:00:17]} Rxa3 {[%emt 0:00:49]} 30. Bd2 {[%emt 0:00:23]} Bb3 {[%emt 0:00:05]} 31. Ra1 {[%emt 0:00:15]} Rxa1 {[%emt 0:00:16]} 32. Rxa1 {[%emt 0:00:01]} Bc2 {[%emt 0:00:02]} 33. h5 {[%emt 0:01:28]} Bxd3 {[%emt 0:00:54]} 34. h6 {[%emt 0:01:50]} (34. Be3 $15) 34... g6 {[%emt 0:00:23]} 35. Ng3 {[%emt 0:00:10]} Be7 {[%emt 0:00:18]} (35... Qd8 $17) 36. Be3 {[%emt 0:00:07] [#] Threatens to win with Rd1.} Bc4 {[%emt 0:00:34]} 37. Bc5 $1 {[%emt 0:00:11]} Kg8 {[%emt 0:00:28]} 38. Bxe7 {[%emt 0:00:02]} Qxe7 {[%emt 0:00:01]} 39. Qe3 {[%emt 0:00:10]} (39. Ra6 $11) 39... Be6 {[%emt 0:00:04]} 40. f3 {[%emt 0:00:02]} Rd8 {[%emt 0:00:17]} 41. Ne2 {[%emt 0:00:02]} ({Better is} 41. Nf1 $15) 41... Qd6 {[%emt 0:00:16]} (41... Bc4 $142 {...Kf7 would now be deadly.} 42. Ng3 Kf7) 42. g5 {[%emt 0:00:14]} f5 {[%emt 0:00:07]} (42... Rf8 $17 {...fxg5 is the strong threat.} 43. Kg2 Rd8) 43. exf5 $11 {[%emt 0:00:02]} Bxf5 {[%emt 0:00:03]} (43... gxf5 $5 44. f4 $8 exf4 45. Qxf4 Qe7 $14) 44. Ng3 {[%emt 0:00:03]} Qe6 {[%emt 0:00:06]} 45. Ne4 {[%emt 0:00:03]} (45. Kf2 $11 {keeps the balance.}) 45... Bxe4 $17 {[%emt 0:00:07]} 46. Qxe4 {[%emt 0:00:01][%mdl 4096] Endgame. [#] KQR-KQR} Qd5 {[%emt 0:00:12]} ({Black should try} 46... Rd2 $1 $17 {( -> ...Qh3)} 47. Qe3 Qd6) 47. Re1 {[%emt 0:00:03]} Qxe4 {[%emt 0:00:03]} 48. Rxe4 $11 {[%emt 0:00:00] KR-KR} Rd5 {[%emt 0:00:01]} 49. Kf2 $2 {[%emt 0:00:05] This costs White the game.} (49. c4 $11 {and White has nothing to worry.} bxc4 50. Rxc4) 49... Kf7 $19 {[%emt 0:00:01]} 50. Ke2 $2 {[%emt 0:00:04]} (50. Re2) 50... Ke6 {[%emt 0:00:02]} 51. Rg4 {[%emt 0:00:10]} Kf5 52. Rg1 {[%emt 0:00:07]} c5 {[%emt 0:00:05]} 53. bxc5 {[%emt 0:00:05]} Rxc5 {[%emt 0:00:01]} 54. Rd1 {[%emt 0:00:06]} (54. Kd2 $142) 54... Kxg5 {[%emt 0:00:03]} 55. Rd7 {[%emt 0:00:04]} Kxh6 {[%emt 0:00:02]} 56. Kd3 {[%emt 0:00:05]} c6 {[%emt 0:00:03]} 57. Rf7 {[%emt 0:00:15]} g5 {[%emt 0:00:03]} 58. Ke4 {[%emt 0:00:06]} Kg6 {[%emt 0:00:01]} 59. Rf8 {[%emt 0:00:03]} Rxc3 {[%emt 0:00:05]} 60. Kxe5 {[%emt 0:00:02]} Rc5+ {[%emt 0:00:04]} 61. Ke6 {[%emt 0:00:02]} Rc4 {[%emt 0:00:06] Hoping for ...Rf4.} 62. Rg8+ {[%emt 0:00:03]} Kh6 {[%emt 0:00:02] aiming for ...Rf4.} 63. Ke5 {[%emt 0:00:05]} Rf4 {[%emt 0:00:04]} 64. Rc8 {[%emt 0:00:01]} Rxf3 {[%emt 0:00:04]} 65. Rxc6+ {[%emt 0:00:02]} Kh5 {[%emt 0:00:01]} 66. Rc7 {[%emt 0:00:03]} h6 {[%emt 0:00:02] Strongly threatening ...g4.} 67. Rc6 {[%emt 0:00:03]} b4 {[%emt 0:00:02]} 68. Ke4 {[%emt 0:00:02]} Rf4+ {[%emt 0:00:04]} 69. Ke3 {[%emt 0:00:01]} b3 {[%emt 0:00:02]} 70. Rb6 {[%emt 0:00:02]} Rh4 {[%emt 0:00:02]} 71. Kf2 {[%emt 0:00:03]} Rh3 {[%emt 0:00:02]} 72. Kg2 {[%emt 0:00:03]} Rc3 {[%emt 0:00:02]} (72... g4 $142 73. Rc6 Kg5 74. Kg1 h5 75. Rc8 Kh4 76. Kg2 Rd3 77. Kf2 b2 78. Rb8 Rd2+ 79. Ke3 Rc2 80. Rb4 Kh3 81. Kd3 Rf2 82. Rb5 h4 83. Kc4 g3 84. Rb3 Kg2 85. Kd4 h3 86. Ke4 h2 87. Ke5 h1=Q (87... h1=B {leads to mate.} 88. Ke4 Kf1+ 89. Kd4 g2 90. Rg3 b1=Q 91. Rg5 g1=Q 92. Rxg1+ Kxg1 93. Kc5 Rc2+ 94. Kd6 Rc6+ 95. Kd7 Qb7+ 96. Ke8 Rc8#) 88. Ke4 Qh5 (88... b1=B+ {is a self mate.} 89. Kd5 Qd1+ 90. Kc6 Rf6+ 91. Kc5 Qxb3 92. Kd4 Qb4+ 93. Kd5 Rd6+ 94. Ke5 Qd4#) 89. Kd3 Rf3+ 90. Kc4 Rxb3 91. Kxb3 b1=Q+ (91... b1=B 92. Kc4 Kf1 93. Kb4 g2 94. Kc4 g1=Q 95. Kc3 Qe5+ 96. Kb4 Qgd4+ 97. Kb3 Qg3#) 92. Kc4 Qc2+ 93. Kd4 Qhc5#) 73. Kg1 {[%emt 0:00:06]} g4 {[%emt 0:00:01] Black mates.} 74. Kg2 {[%emt 0:00:05]} Kg5 {[%emt 0:00:05]} 75. Rb4 {[%emt 0:00:06]} Kh4 {[%emt 0:00:02]} 76. Rb5 {[%emt 0:00:05]} Rc2+ {[%emt 0:00:01]} 77. Kg1 {[%emt 0:00:04]} b2 {[%emt 0:00:02] Weighted Error Value: White=0.42/Black=0.22 (precise) .  Loses game:     	White=1     	---        Mistake:       	White=7     	Black=4      Inaccurate:     	White=8     	Black=3      OK:         	White=12    	Black=12     Best:        	White=1     	Black=5      Strong:       	White=1     	---} 0-1

[Event "Polish University-ch Teams 2024"]
[Site "Lublin"]
[Date "2024.02.25"]
[Round "8.5"]
[White "Adamczyk, Zuzanna"]
[Black "Antolak, Julia"]
[Result "0-1"]
[ECO "A57"]
[WhiteElo "1970"]
[BlackElo "2309"]
[Annotator "ChessBase"]
[PlyCount "74"]
[EventDate "2024.02.22"]
[EventType "team-tourn"]
[EventCountry "POL"]
[SourceTitle "playchess.com"]
[Source "ChessBase"]
[SourceQuality "1"]
[TimeControl "900+5"]

1. d4 {[%emt 0:00:03]} Nf6 {[%emt 0:00:02]} 2. c4 {[%emt 0:00:03]} c5 {[%emt 0:00:01]} 3. d5 {[%emt 0:00:02]} b5 {[%emt 0:00:02]} 4. cxb5 {[%emt 0:00:04]} a6 {[%emt 0:00:01]} 5. e3 {[%emt 0:00:05]} axb5 {[%emt 0:00:06]} 6. Bxb5 {[%emt 0:00:16]} Qa5+ {[%emt 0:00:02]} 7. Nc3 {[%emt 0:00:23]} Bb7 {[%emt 0:00:02]} 8. Bc4 {[%emt 0:00:51]} e6 {[%emt 0:01:01]} 9. Bd2 {[%emt 0:01:47]} Qb6 {[%emt 0:00:55]} 10. e4 {[%emt 0:01:44]} Nxe4 {[%emt 0:13:43]} 11. Nxe4 {[%emt 0:01:28]} exd5 {[%emt 0:00:00]} 12. Bc3 {[%emt 0:02:15]} dxe4 {[%emt 0:00:00]} 13. Qh5 {[%emt 0:02:12]} Qg6 {[%emt 0:00:00]} 14. Qe5+ {[%emt 0:00:18]} Be7 {[%emt 0:00:00]} 15. Ne2 {[%emt 0:02:08]} d6 {[%emt 0:00:00]} 16. Bb5+ {[%emt 0:00:47]} Nd7 {[%emt 0:00:00]} 17. Qg3 {[%emt 0:01:04]} Qxg3 {[%emt 0:00:00]} 18. Nxg3 {[%emt 0:00:13]} O-O-O {[%emt 0:00:00]} 19. Nf5 {[%emt 0:00:07]} Bf8 {[%emt 0:00:00]} 20. Bxg7 {[%emt 0:00:21]} Bxg7 {[%emt 0:00:00]} 21. Nxg7 {[%emt 0:00:03]} Ne5 {[%emt 0:00:00]} 22. Nf5 {[%emt 0:00:19]} Kc7 {[%emt 0:00:00]} 23. O-O-O {[%emt 0:00:12]} d5 {[%emt 0:00:00]} 24. a4 {[%emt 0:00:06]} Kb6 {[%emt 0:00:00]} 25. h3 {[%emt 0:00:01]} Bc8 {[%emt 0:00:00]} 26. Ne7 {[%emt 0:00:04]} Be6 {[%emt 0:00:00]} 27. Rhe1 {[%emt 0:00:10]} c4 {[%emt 0:00:00]} 28. Kb1 {[%emt 0:00:06]} Kc5 {[%emt 0:00:00]} 29. Re2 {[%emt 0:00:04]} f5 {[%emt 0:00:32]} 30. f4 {[%emt 0:00:03]} Nd3 {[%emt 0:00:07]} 31. g3 {[%emt 0:00:04]} Rb8 {[%emt 0:00:29]} 32. Nc6 {[%emt 0:00:03]} Rb6 {[%emt 0:00:03]} 33. Ne5 {[%emt 0:00:12]} Nxe5 {[%emt 0:00:04]} 34. fxe5 {[%emt 0:00:01]} d4 {[%emt 0:00:04]} 35. Rc1 {[%emt 0:00:07]} d3 {[%emt 0:00:07]} 36. Re3 {[%emt 0:00:06]} Kd4 {[%emt 0:00:01]} 37. Rce1 {[%emt 0:00:07]} d2 {[%emt 0:00:14]} 0-1